bitfinex/quotes_BTCUSD_20220111
["timestamp","ask_amount","ask_price","bid_price","bid_amount"]
[1641915074797,0.001,41956.0,41940.0,0.28192412]
[1641915074998,0.41739209,41947.0,41942.0,0.2670285]
[1641915075199,0.41739209,41947.0,41943.0,0.05]
[1641915075656,0.41739209,41947.0,41942.0,0.044]
[1641915076246,0.30124269,41945.0,41942.0,0.044]
[1641915076445,0.30124269,41945.0,41938.0,0.009]
[1641915076649,0.45999929,41940.0,41939.0,0.044]
[1641915076847,0.89724806,41940.0,41929.0,0.203628]
[1641915077046,0.89724806,41940.0,41929.0,0.103628]
[1641915077047,0.36974398,41932.0,41929.0,0.103628]
[1641915077246,0.36974398,41932.0,41929.0,0.044]
[1641915077445,0.36974398,41932.0,41931.0,0.31048021]
[1641915077645,0.31024269,41945.0,41928.0,0.00127598]
[1641915077646,0.25795747,41938.0,41928.0,0.00127598]
[1641915077845,0.25795747,41938.0,41929.0,0.0999]
[1641915078047,0.00126808,41937.0,41929.0,0.0999]
[1641915078649,0.40058621,41936.0,41929.0,0.0999]
[1641915078847,0.43496959,41935.0,41929.0,0.0999]
[1641915079049,0.43496959,41935.0,41929.0,0.006]
[1641915079696,0.42996959,41935.0,41929.0,0.006]
[1641915080199,1.359652,41933.0,41914.0,0.0012444]
[1641915080400,1.359652,41933.0,41913.0,0.0011]
[1641915080401,0.00128495,41930.0,41913.0,0.0011]
[1641915080598,0.05967034,41921.0,41913.0,0.0011]
[1641915080798,0.05967,41919.0,41913.0,0.0011]
[1641915081203,0.55,41913.0,41901.0,0.00929711]
[1641915081399,0.31853276,41912.0,41901.0,0.008]
[1641915081601,0.31974993,41912.0,41901.0,0.008]
[1641915081800,0.00121717,41912.0,41901.0,0.008]
[1641915082000,0.00121717,41912.0,41907.0,0.0999]
[1641915082202,0.00121717,41912.0,41907.0,0.40430041]
[1641915082602,0.044,41917.0,41907.0,0.40430041]
[1641915082603,0.38800993,41911.0,41907.0,0.45430041]
[1641915082804,0.38800993,41911.0,41908.0,0.37152]
[1641915083003,0.0012245,41918.0,41908.0,0.37152]
[1641915083249,1.0337,41923.0,41909.0,0.059655]
[1641915083451,0.00125875,41922.0,41910.0,0.059657]
[1641915083753,0.40970945,41918.0,41907.0,0.35525502]
[1641915083947,0.28397923,41917.0,41907.0,0.00085461]
[1641915084148,0.00129156,41913.0,41907.0,0.00085461]
[1641915084346,0.00129156,41913.0,41903.0,0.0999]
[1641915084547,0.00129156,41913.0,41910.0,0.00085458]
[1641915084751,0.29262954,41913.0,41910.0,0.00085458]
[1641915084948,0.42641091,41912.0,41910.0,0.00085458]
[1641915085148,1.64859801,41911.0,41910.0,0.00085458]
[1641915085550,0.00124801,41905.0,41901.0,0.008]
[1641915085750,0.059695,41903.0,41886.0,0.0011]
[1641915085950,0.00127263,41899.0,41898.0,0.0001]
[1641915086898,0.00123576,41899.0,41898.0,0.0001]
[1641915087098,0.01023576,41899.0,41898.0,0.0001]
[1641915088101,1.34807362,41898.0,41885.0,0.00341983]
[1641915088301,1.34807362,41898.0,41878.0,0.085]
[1641915088302,0.05971752,41887.0,41878.0,0.085]
[1641915088502,0.00122859,41880.0,41878.0,0.085]
[1641915088801,0.42999806,41880.0,41878.0,0.085]
[1641915089004,0.47999806,41880.0,41878.0,0.085]
[1641915089202,0.47999806,41880.0,41870.0,0.0011]
[1641915089203,0.48699806,41880.0,41870.0,0.0011]
[1641915089603,0.059723,41876.0,41870.0,0.0011]
[1641915089804,0.05,41880.0,41874.0,0.0999]
[1641915090004,0.00129355,41876.0,41874.0,0.0999]
[1641915090205,0.7136511,41874.0,41870.0,0.0011]
[1641915090406,0.76092216,41874.0,41870.0,0.0011]
[1641915090652,0.80492216,41874.0,41870.0,0.0011]
[1641915090845,0.00125457,41871.0,41870.0,0.0011]
[1641915091045,0.00125457,41871.0,41864.0,0.0011]
[1641915091046,0.04525457,41871.0,41864.0,0.0011]
[1641915091251,0.00125653,41865.0,41864.0,0.0011]
[1641915091447,0.00125653,41865.0,41861.0,0.0079]
[1641915091655,0.00125653,41865.0,41862.0,0.37237511]
[1641915091850,0.044,41871.0,41862.0,0.37237511]
[1641915092048,0.044,41871.0,41862.0,0.00085511]
[1641915092449,0.25875758,41867.0,41862.0,0.00085511]
[1641915092648,0.00129916,41869.0,41861.0,0.40362131]
[1641915092849,0.179201,41875.0,41867.0,0.0999]
[1641915092850,0.044,41868.0,41867.0,0.0999]
[1641915093049,0.594,41868.0,41867.0,0.0999]
[1641915093249,0.31602382,41873.0,41867.0,0.0999]
[1641915093450,0.00121745,41870.0,41862.0,0.00085511]
[1641915093650,0.044,41869.0,41868.0,0.5999]
[1641915094050,0.044,41869.0,41868.0,0.0999]
[1641915094899,1.34520152,41869.0,41868.0,0.0999]
[1641915095097,1.39920152,41869.0,41868.0,0.0999]
[1641915095400,0.81850132,41869.0,41868.0,0.0999]
[1641915095598,0.86850132,41869.0,41868.0,0.0999]
[1641915095797,1.16850132,41869.0,41868.0,0.0999]
[1641915095998,0.86850132,41869.0,41868.0,0.0999]
[1641915096199,0.048,41869.0,41868.0,0.0999]
[1641915096398,0.044,41869.0,41868.0,0.47142]
[1641915096598,0.044,41869.0,41868.0,0.57142]
[1641915096801,0.00127242,41878.0,41868.0,0.47142]
[1641915097000,0.059723,41877.0,41866.0,0.00085506]
[1641915097198,0.33414265,41875.0,41870.0,0.30828123]
[1641915097698,0.33414265,41875.0,41870.0,0.30905529]
[1641915098176,0.00127242,41878.0,41870.0,0.30905529]
[1641915098363,0.163449,41886.0,41870.0,0.30905529]
[1641915098364,0.044,41886.0,41871.0,0.37152]
[1641915098565,0.00126753,41876.0,41870.0,0.10067406]
[1641915098763,0.00126753,41876.0,41870.0,0.0999]
[1641915098963,0.00126753,41876.0,41870.0,0.10299643]
[1641915099163,0.059729,41873.0,41870.0,0.14099643]
[1641915099563,0.36819891,41871.0,41870.0,0.14099643]
[1641915099767,1.61946603,41871.0,41870.0,0.14099643]
[1641915099964,1.61946603,41871.0,41870.0,0.05227275]
[1641915100164,1.66346603,41871.0,41870.0,0.05227275]
[1641915100364,1.2,41870.0,41868.0,0.00077408]
[1641915100565,1.2,41870.0,41856.0,0.0011]
[1641915100566,0.059752,41867.0,41856.0,0.0011]
[1641915100764,0.00128047,41859.0,41856.0,0.0011]
[1641915100964,0.044,41858.0,41856.0,0.0011]
[1641915101165,0.044,41858.0,41857.0,0.0161]
[1641915101367,1.344,41858.0,41857.0,0.0089]
[1641915101573,1.444,41858.0,41857.0,0.0089]
[1641915101767,1.9726931,41858.0,41857.0,0.0089]
[1641915102000,0.00128413,41853.0,41846.0,0.0999]
[1641915102204,0.04528413,41853.0,41846.0,0.0999]
[1641915102598,2.26574165,41858.0,41846.0,0.0999]
[1641915102599,0.00124112,41852.0,41846.0,0.0999]
[1641915102998,0.24348728,41851.0,41846.0,0.0999]
[1641915103199,0.00129703,41847.0,41834.0,0.2828]
[1641915103398,0.00129703,41847.0,41829.0,0.4]
[1641915103399,0.00127377,41834.0,41829.0,0.4]
[1641915103600,0.41565073,41833.0,41829.0,0.4]
[1641915103798,0.594,41832.0,41822.0,0.0011]
[1641915103999,0.26136196,41828.0,41822.0,0.0011]
[1641915104201,0.26136196,41828.0,41826.0,0.0011]
[1641915104202,0.31136196,41828.0,41826.0,0.0011]
[1641915104398,0.36136196,41828.0,41827.0,0.0999]
[1641915104602,0.36136196,41828.0,41826.0,0.0001]
[1641915104603,1.25,41827.0,41826.0,0.0001]
[1641915104798,1.73438974,41827.0,41822.0,0.0011]
[1641915105000,0.044,41827.0,41822.0,0.0011]
[1641915105202,0.72066629,41852.0,41822.0,1.3011]
[1641915105397,0.0999,41836.0,41823.0,0.2900493]
[1641915105654,0.0999,41836.0,41822.0,0.0011]
[1641915105655,0.044,41835.0,41822.0,0.0011]
[1641915105850,0.05979,41834.0,41822.0,0.0011]
[1641915106156,0.05979,41834.0,41825.0,0.101]
[1641915106157,0.30912494,41826.0,41825.0,0.101]
[1641915106349,0.044,41826.0,41825.0,0.101]
[1641915106549,0.094,41826.0,41825.0,0.101]
[1641915106850,0.044,41826.0,41825.0,0.101]
[1641915107252,0.044,41826.0,41825.0,0.37683129]
[1641915107253,0.051,41826.0,41825.0,0.37683129]
[1641915107452,0.051,41826.0,41825.0,1.06274764]
[1641915107653,0.051,41826.0,41825.0,2.04835129]
[1641915108050,0.051,41826.0,41825.0,1.10816497]
[1641915108251,0.051,41826.0,41825.0,0.73664497]
[1641915108451,0.64741472,41832.0,41825.0,0.73664497]
[1641915108652,0.30878714,41832.0,41825.0,0.73664497]
[1641915108851,0.30878714,41832.0,41825.0,0.63674497]
[1641915109051,0.044,41835.0,41830.0,0.0999]
[1641915109251,0.007,41832.0,41825.0,0.63674497]
[1641915109497,0.007,41832.0,41831.0,0.4999]
[1641915109699,0.007,41832.0,41831.0,0.74922515]
[1641915109998,0.007,41832.0,41831.0,0.34922515]
[1641915110398,0.044,41835.0,41831.0,0.34922515]
[1641915110597,0.044,41835.0,41832.0,0.37152]
[1641915111196,0.044,41835.0,41833.0,0.31976695]
[1641915111197,0.001,41835.0,41833.0,0.31976695]
[1641915111402,0.001,41835.0,41834.0,0.78976561]
[1641915111597,0.001,41835.0,41832.0,0.034]
[1641915111798,0.001,41835.0,41833.0,0.1]
[1641915112600,0.00078775,41836.0,41834.0,1.08028929]
[1641915112799,0.00078775,41836.0,41834.0,0.28028929]
[1641915112998,0.00078775,41836.0,41832.0,0.0999]
[1641915113253,0.00061991,41837.0,41834.0,0.019]
[1641915113452,0.00061991,41837.0,41832.0,0.0999]
[1641915113453,0.00126028,41835.0,41832.0,0.0999]
[1641915113651,0.00126028,41835.0,41830.0,0.00067131]
[1641915113652,1.1037279,41835.0,41830.0,0.00067131]
[1641915113851,1.1537279,41835.0,41830.0,0.00067131]
[1641915114052,0.11960335,41833.0,41830.0,0.00067131]
[1641915114251,0.11960335,41833.0,41830.0,0.0999]
[1641915114451,0.05,41832.0,41830.0,0.0999]
[1641915114651,1.35,41833.0,41822.0,0.0011]
[1641915114854,1.409803,41833.0,41822.0,0.0011]
[1641915115256,0.17940501,41832.0,41825.0,0.25122603]
[1641915115454,0.062,41833.0,41825.0,0.25122603]
[1641915115751,0.062,41833.0,41821.0,0.008]
[1641915115752,0.012,41833.0,41821.0,0.008]
[1641915115951,0.012,41833.0,41803.0,0.0011]
[1641915115952,1.33822311,41831.0,41808.0,0.00127653]
[1641915116152,0.04945704,41822.0,41803.0,0.0011]
[1641915116353,0.05982039,41814.0,41803.0,0.0011]
[1641915116551,0.30777611,41815.0,41803.0,0.27201899]
[1641915116756,0.3896593,41810.0,41803.0,0.0011]
[1641915117011,0.9,41812.0,41809.0,0.0999]
[1641915117209,0.01,41810.0,41797.0,0.19696266]
[1641915117411,0.01,41810.0,41809.0,0.0999]
[1641915117811,0.26,41810.0,41809.0,0.0949]
[1641915118010,0.01,41810.0,41809.0,0.0949]
[1641915118409,0.094,41817.0,41809.0,0.0949]
[1641915118410,0.39661832,41817.0,41809.0,0.0949]
[1641915118609,0.76824501,41810.0,41809.0,0.0949]
[1641915118809,0.76824501,41810.0,41809.0,0.0899]
[1641915118810,0.41824501,41810.0,41809.0,0.0899]
[1641915119009,0.46824501,41810.0,41809.0,0.0899]
[1641915119211,0.48024501,41810.0,41809.0,0.0899]
[1641915119510,0.83024501,41810.0,41809.0,0.0899]
[1641915119710,0.64719966,41812.0,41810.0,0.51975499]
[1641915120011,0.00124647,41811.0,41810.0,0.42985499]
[1641915120210,1.29524647,41811.0,41810.0,0.42985499]
[1641915120660,1.39524647,41811.0,41810.0,0.42985499]
[1641915120851,0.7,41810.0,41794.0,2.46794827]
[1641915121050,0.059837,41804.0,41794.0,2.46794827]
[1641915121451,0.34661832,41809.0,41798.0,0.50356484]
[1641915121655,0.34661832,41809.0,41799.0,0.30261832]
[1641915121656,0.00083561,41803.0,41799.0,0.30261832]
[1641915121854,0.00083561,41803.0,41802.0,1.75793958]
[1641915122152,0.00083561,41803.0,41802.0,2.22945958]
[1641915122352,0.00083561,41803.0,41802.0,2.12945958]
[1641915122553,0.00083561,41803.0,41802.0,0.82945958]
[1641915122754,0.40714778,41815.0,41807.0,0.30338945]
[1641915123056,0.40714778,41815.0,41802.0,0.45793958]
[1641915123058,0.45714778,41815.0,41802.0,0.45793958]
[1641915123253,0.1789,41815.0,41802.0,0.00122803]
[1641915123453,0.029,41815.0,41802.0,0.15116803]
[1641915123654,0.029,41815.0,41803.0,0.30261832]
[1641915123853,0.029,41815.0,41809.0,0.26058222]
[1641915124053,0.029,41815.0,41802.0,0.00122803]
[1641915124054,0.00083572,41811.0,41802.0,0.00122803]
[1641915124254,0.00083572,41811.0,41805.0,0.32192873]
[1641915124703,0.00083572,41811.0,41805.0,0.62053006]
[1641915124904,0.00083572,41811.0,41806.0,0.63468892]
[1641915125104,0.044,41823.0,41807.0,0.05]
[1641915125303,0.044,41823.0,41809.0,0.00125169]
[1641915125304,0.01883572,41811.0,41809.0,0.00125169]
[1641915125506,0.01883572,41811.0,41806.0,0.26316892]
[1641915125709,0.01883572,41811.0,41805.0,0.32792873]
[1641915125905,0.01883572,41811.0,41805.0,0.32728765]
[1641915126205,0.01883572,41811.0,41806.0,0.67182056]
[1641915126404,0.018,41811.0,41807.0,0.00120855]
[1641915126605,0.00083571,41810.0,41809.0,1.30452246]
[1641915127006,0.00083571,41810.0,41809.0,1.65249341]
[1641915127207,0.00700571,41810.0,41809.0,1.28375822]
[1641915127406,0.42,41832.0,41810.0,0.007]
[1641915127606,0.42,41832.0,41821.0,0.09994]
[1641915127810,0.42,41832.0,41828.0,0.09994]
[1641915128006,0.42,41832.0,41829.0,0.044]
[1641915128262,0.0001,41831.0,41830.0,2.29070476]
[1641915128458,0.42,41832.0,41830.0,0.41552]
[1641915128660,0.42,41832.0,41830.0,0.044]
[1641915129459,0.42,41832.0,41830.0,0.81672429]
[1641915129660,0.42,41832.0,41831.0,1.31225904]
[1641915129858,0.42,41832.0,41831.0,0.37152]
[1641915130059,0.42,41832.0,41830.0,0.81672429]
[1641915130461,0.42,41832.0,41830.0,0.80372429]
[1641915130863,0.42,41832.0,41831.0,2.05589219]
[1641915131061,0.42,41832.0,41831.0,2.15589219]
[1641915131661,0.00082771,41834.0,41831.0,2.15589219]
[1641915131902,0.00082771,41834.0,41833.0,1.67272749]
[1641915132102,0.00082771,41834.0,41833.0,1.86672749]
[1641915132304,0.01,41849.0,41833.0,1.86672749]
[1641915132505,0.01,41849.0,41840.0,1.0]
[1641915132803,0.00971212,41849.0,41840.0,1.0]
[1641915133002,0.00971212,41849.0,41845.0,0.30687906]
[1641915133405,0.00971212,41849.0,41843.0,0.27674044]
[1641915133602,0.00971212,41849.0,41841.0,0.3996086]
[1641915133804,0.01053998,41849.0,41840.0,1.017]
[1641915134005,0.05978,41846.0,41840.0,1.017]
[1641915134403,0.06176317,41849.0,41840.0,1.017]
[1641915134803,0.05977516,41847.0,41840.0,1.017]
[1641915135005,0.32935997,41846.0,41840.0,1.017]
[1641915135205,0.00082784,41847.0,41840.0,1.017]
[1641915135406,0.42,41853.0,41850.0,0.49970737]
[1641915135661,0.70909604,41853.0,41850.0,0.49970737]
[1641915135857,0.76886704,41853.0,41850.0,0.49970737]
[1641915136257,1.05020712,41853.0,41850.0,0.49970737]
[1641915136459,0.42,41853.0,41850.0,0.49970737]
[1641915137257,0.469,41853.0,41850.0,0.49970737]
[1641915137459,0.469,41853.0,41850.0,0.80353066]
[1641915137857,0.469,41853.0,41850.0,0.49970737]
[1641915138458,0.528758,41853.0,41850.0,0.49970737]
[1641915138662,1.55156206,41851.0,41850.0,0.22366727]
[1641915138860,1.55156206,41851.0,41836.0,0.0897]
[1641915138861,0.65,41850.0,41836.0,0.0897]
[1641915139059,0.179356,41849.0,41836.0,0.0897]
[1641915139258,0.044,41848.0,41836.0,0.0897]
[1641915139507,0.144,41848.0,41836.0,0.0897]
[1641915139703,0.05978494,41845.0,41836.0,0.0897]
[1641915140002,0.10978494,41845.0,41838.0,0.62557656]
[1641915140204,0.00081965,41849.0,41838.0,0.62557656]
[1641915140403,0.00081965,41849.0,41842.0,0.00125991]
[1641915140903,0.0008197,41849.0,41842.0,0.00125991]
[1641915141103,0.0008197,41849.0,41846.0,0.27436674]
[1641915141308,0.0098197,41849.0,41846.0,0.27436674]
[1641915141906,0.0098197,41849.0,41847.0,0.32314112]
[1641915141907,0.009,41849.0,41847.0,0.32314112]
[1641915142105,0.00981975,41853.0,41849.0,1.3]
[1641915142306,0.00327763,41867.0,41852.0,0.00127644]
[1641915142505,0.00327763,41867.0,41861.0,0.00128168]
[1641915142707,0.00327763,41867.0,41863.0,0.39691987]
[1641915143254,0.032,41867.0,41866.0,0.72969916]
[1641915144255,0.032,41867.0,41866.0,1.12969916]
[1641915144457,0.032,41867.0,41866.0,0.72969916]
[1641915144655,0.032,41867.0,41866.0,0.73094519]
[1641915144857,0.032,41867.0,41866.0,1.10246519]
[1641915145257,0.032,41867.0,41866.0,0.37576603]
[1641915145458,0.032,41867.0,41866.0,0.003]
[1641915146902,0.059735,41868.0,41862.0,0.7047137]
[1641915147103,0.059735,41868.0,41859.0,0.0897]
[1641915147104,0.31414938,41867.0,41859.0,0.0897]
[1641915147304,0.00978555,41869.0,41859.0,0.0897]
[1641915147305,0.28472555,41865.0,41859.0,0.0897]
[1641915147706,0.33472555,41865.0,41859.0,0.0897]
[1641915147904,0.33472555,41865.0,41852.0,0.27454371]
[1641915147905,0.25471532,41861.0,41852.0,0.27454371]
[1641915148105,0.11951,41860.0,41848.0,0.00124656]
[1641915148505,0.05,41859.0,41848.0,0.00124656]
[1641915148704,0.05,41859.0,41848.0,0.26775603]
[1641915148908,0.35814938,41858.0,41845.0,0.00069359]
[1641915149112,0.33163531,41846.0,41836.0,0.27043629]
[1641915149407,1.15118431,41846.0,41845.0,0.0747]
[1641915149605,0.76472983,41846.0,41845.0,0.0747]
[1641915149804,0.119549,41846.0,41842.0,0.30626078]
[1641915150005,0.119549,41846.0,41837.0,0.00277521]
[1641915150204,0.119549,41846.0,41840.0,0.77767168]
[1641915150205,0.044,41845.0,41840.0,0.77767168]
[1641915150408,0.219569,41843.0,41840.0,0.77767168]
[1641915150669,1.38754106,41842.0,41840.0,0.26415898]
[1641915150863,0.059799,41838.0,41831.0,0.0747]
[1641915151163,0.409681,41834.0,41831.0,0.0747]
[1641915151362,0.044,41833.0,41831.0,0.0747]
[1641915151563,0.23663136,41827.0,41822.0,0.0022]
[1641915151765,0.23663136,41827.0,41822.0,0.0769]
[1641915151766,0.0597995,41825.0,41822.0,0.0769]
[1641915152967,0.119601,41834.0,41822.0,0.0769]
[1641915153365,0.041,41825.0,41822.0,0.0769]
[1641915154609,0.00084444,41837.0,41824.0,0.00127439]
[1641915154808,0.00084444,41837.0,41825.0,0.37152]
[1641915155008,0.00084444,41837.0,41825.0,0.1]
[1641915155208,0.15090014,41847.0,41825.0,0.1]
[1641915155209,0.11956958,41839.0,41825.0,0.1]
[1641915155409,0.27460947,41836.0,41830.0,0.2967796]
[1641915155610,0.059784,41835.0,41830.0,0.2967796]
[1641915155810,0.059784,41835.0,41828.0,0.45956574]
[1641915156010,0.33433781,41829.0,41827.0,0.00085549]
[1641915156408,0.33433781,41829.0,41825.0,0.015]
[1641915156609,0.33433781,41829.0,41826.0,0.0008555]
[1641915157011,0.059791,41831.0,41826.0,0.0008555]
[1641915157212,0.05,41835.0,41826.0,0.0008555]
[1641915157410,0.01,41829.0,41826.0,0.0098555]
[1641915157612,0.01,41829.0,41826.0,0.009]
[1641915157811,0.01,41829.0,41828.0,0.00076119]
[1641915158262,0.01,41829.0,41828.0,0.85076119]
[1641915158560,0.05,41835.0,41828.0,0.85076119]
[1641915158763,0.05,41835.0,41829.0,0.34805471]
[1641915158960,0.05,41835.0,41831.0,0.28276799]
[1641915159162,0.25604755,41836.0,41831.0,0.25521545]
[1641915159461,0.00057483,41837.0,41831.0,0.25521545]
[1641915159665,0.00057483,41837.0,41832.0,0.30712334]
[1641915159862,0.059775,41842.0,41832.0,0.30712334]
[1641915160065,0.00057496,41837.0,41832.0,0.40788449]
[1641915160260,0.00057496,41837.0,41833.0,0.28481997]
[1641915160466,0.00057496,41837.0,41836.0,0.27898753]
[1641915160662,0.00057496,41837.0,41833.0,0.28481997]
[1641915161062,0.059774,41842.0,41833.0,0.28481997]
[1641915161263,0.00065833,41837.0,41833.0,0.28561121]
[1641915161464,0.00065833,41837.0,41833.0,0.29861121]
[1641915161662,0.05977532,41844.0,41840.0,0.99934167]
[1641915161909,0.00263242,41851.0,41841.0,0.67501558]
[1641915162110,0.00263242,41851.0,41842.0,0.31354363]
[1641915162310,0.059755,41856.0,41842.0,0.31354363]
[1641915162508,0.0999,41857.0,41847.0,0.00122983]
[1641915162707,0.23973338,41855.0,41847.0,0.00122983]
[1641915163109,0.33610677,41854.0,41833.0,0.013]
[1641915163310,0.05977,41846.0,41837.0,0.0012531]
[1641915163909,0.05977,41846.0,41840.0,1.25408706]
[1641915164110,0.41020301,41854.0,41840.0,1.25408706]
[1641915164111,0.3342811,41858.0,41843.0,0.41757651]
[1641915164309,0.3342811,41858.0,41842.0,0.4281781]
[1641915164310,0.059759,41856.0,41842.0,0.4281781]
[1641915164510,0.059759,41853.0,41842.0,0.4281781]
[1641915164914,0.059759,41853.0,41850.0,1.0]
[1641915165312,0.096759,41853.0,41850.0,1.0]
[1641915165659,0.037,41853.0,41850.0,1.0]
[1641915166653,0.00083843,41854.0,41850.0,1.1]
[1641915166953,0.00083843,41854.0,41852.0,0.30971]
[1641915167152,0.64274616,41867.0,41852.0,0.30971]
[1641915167153,0.31504732,41866.0,41852.0,0.70092232]
[1641915167356,0.03744835,41867.0,41852.0,0.70092232]
[1641915167357,0.00083843,41854.0,41853.0,0.00123284]
[1641915167557,0.00083843,41854.0,41853.0,1.37275284]
[1641915167753,0.00083843,41854.0,41853.0,1.81764673]
[1641915167955,0.00083843,41854.0,41853.0,1.91764673]
[1641915168354,0.03744835,41867.0,41856.0,0.059739]
[1641915168355,0.27911602,41862.0,41856.0,0.059739]
[1641915168555,0.00083845,41856.0,41854.0,0.119477]
[1641915169154,0.00083845,41856.0,41855.0,1.57482213]
[1641915169604,0.03744835,41867.0,41858.0,0.059733]
[1641915169807,0.00335336,41864.0,41856.0,0.119466]
[1641915170003,0.00335336,41864.0,41856.0,0.42408344]
[1641915170207,0.2685715,41872.0,41870.0,0.6290041]
[1641915170708,0.3283145,41872.0,41870.0,0.6290041]
[1641915170907,0.48551299,41872.0,41870.0,0.6290041]
[1641915171106,0.06694149,41872.0,41870.0,0.6290041]
[1641915171328,0.05974,41871.0,41860.0,0.31384532]
[1641915171507,0.05974,41871.0,41860.0,0.39846531]
[1641915171706,0.05974,41871.0,41862.0,0.43607143]
[1641915171908,0.059734,41869.0,41862.0,0.43607143]
[1641915172107,0.059734,41869.0,41868.0,0.31995295]
[1641915172709,0.00719849,41872.0,41868.0,0.31995295]
[1641915172907,0.06692949,41872.0,41868.0,0.31995295]
[1641915173359,0.00042338,41872.0,41868.0,0.31995295]
[1641915173560,0.00042338,41872.0,41869.0,0.39901033]
[1641915173757,0.00042338,41872.0,41871.0,0.00120561]
[1641915173960,0.00042338,41872.0,41871.0,1.34708561]
[1641915174158,0.00042338,41872.0,41871.0,1.86260561]
[1641915174358,0.42,41873.0,41871.0,1.91260561]
[1641915174559,0.42,41873.0,41872.0,1.74622]
[1641915174860,0.42,41873.0,41872.0,0.4474999]
[1641915175059,0.42,41873.0,41872.0,0.9727999]
[1641915175460,0.42,41873.0,41872.0,0.0092799]
[1641915175660,0.42,41873.0,41871.0,0.0727]
[1641915176058,0.479728,41873.0,41868.0,0.31995295]
[1641915176258,0.42,41873.0,41868.0,0.31995295]
[1641915176459,0.42,41873.0,41868.0,0.57868684]
[1641915176907,0.42080574,41873.0,41868.0,0.57868684]
[1641915177507,0.42080574,41873.0,41868.0,0.58268684]
[1641915177911,0.42,41873.0,41868.0,0.004]
[1641915178109,0.42080574,41873.0,41868.0,0.004]
[1641915178709,0.1194692,41872.0,41867.0,0.00124502]
[1641915178909,0.42080574,41873.0,41867.0,0.00124502]
[1641915179109,0.42,41873.0,41867.0,0.4473153]
[1641915179309,0.00080574,41872.0,41867.0,0.4473153]
[1641915179510,0.00080574,41872.0,41867.0,0.5013153]
[1641915179709,0.00080574,41872.0,41867.0,0.6013153]
[1641915179909,0.00080574,41872.0,41868.0,0.5644495]
[1641915180109,0.00080574,41872.0,41869.0,0.059722]
[1641915180310,0.42,41873.0,41869.0,0.059722]
[1641915180513,0.42,41873.0,41871.0,0.0012774]
[1641915180514,0.42080574,41873.0,41871.0,0.0012774]
[1641915180757,0.42080574,41873.0,41872.0,0.87152]
[1641915180958,0.42080574,41873.0,41872.0,0.92152]
[1641915181159,0.42080574,41873.0,41872.0,0.52152]
[1641915181360,0.42080574,41873.0,41872.0,0.38152]
[1641915181557,0.42,41873.0,41872.0,0.01]
[1641915182757,0.42,41873.0,41869.0,0.31539275]
[1641915183461,0.33820445,41872.0,41869.0,0.005]
[1641915183659,0.05973573,41871.0,41869.0,0.005]
[1641915183860,1.10262438,41870.0,41869.0,0.005]
[1641915184702,1.10262438,41870.0,41864.0,0.29736691]
[1641915184703,0.059736,41869.0,41864.0,0.29736691]
[1641915184902,0.11947775,41869.0,41862.0,0.00085518]
[1641915185103,0.11947775,41869.0,41858.0,0.17073935]
[1641915185306,0.00080569,41868.0,41862.0,0.06059214]
[1641915185504,0.00080569,41868.0,41862.0,0.00085514]
[1641915185905,0.00080569,41868.0,41864.0,0.27017232]
[1641915186305,0.42719763,41873.0,41864.0,0.37990432]
[1641915186505,0.0008057,41868.0,41864.0,0.38118887]
[1641915186907,0.0008057,41868.0,41864.0,0.48118887]
[1641915187507,0.42719763,41873.0,41864.0,0.48918887]
[1641915187807,0.0008057,41868.0,41864.0,0.48918887]
[1641915188756,0.48692963,41873.0,41866.0,0.05]
[1641915188955,0.0008057,41868.0,41864.0,0.38118887]
[1641915189157,0.0008057,41868.0,41865.0,0.89714747]
[1641915189355,0.0008057,41868.0,41867.0,0.04559047]
[1641915189555,0.0008057,41868.0,41867.0,2.07152003]
[1641915189755,0.0011,41876.0,41868.0,1.3]
[1641915189957,0.0011,41876.0,41873.0,0.00121446]
[1641915190155,0.60529781,41885.0,41875.0,0.00129097]
[1641915190356,0.60529781,41885.0,41884.0,0.24997753]
[1641915190555,0.008,41889.0,41884.0,0.3096762]
[1641915191154,0.008,41889.0,41885.0,0.27542827]
[1641915191557,0.008,41889.0,41886.0,0.0597]
[1641915191758,0.008,41889.0,41887.0,0.00120677]
[1641915192007,0.008,41889.0,41888.0,1.62276112]
[1641915192205,0.008,41889.0,41888.0,1.76137007]
[1641915192604,0.008,41889.0,41888.0,1.41913949]
[1641915192803,0.008,41889.0,41888.0,1.76313949]
[1641915193005,0.008,41889.0,41888.0,1.42453054]
[1641915193403,0.008,41889.0,41888.0,1.43153054]
[1641915193804,0.008,41889.0,41888.0,1.00325644]
[1641915194005,0.008,41889.0,41888.0,0.05224112]
[1641915194204,0.008,41889.0,41888.0,0.051]
[1641915194604,0.008,41889.0,41888.0,0.007]
[1641915194805,0.008,41889.0,41883.0,0.119403]
[1641915195005,0.008,41889.0,41888.0,0.00105]
[1641915195206,0.008,41889.0,41888.0,0.0045]
[1641915195662,0.258,41889.0,41888.0,0.0045]
[1641915196655,0.008,41889.0,41888.0,0.0045]
[1641915197054,0.008,41889.0,41885.0,0.28425798]
[1641915197455,0.008,41889.0,41886.0,0.0042]
[1641915197654,0.008,41889.0,41886.0,0.0045]
[1641915199259,0.008,41889.0,41884.0,0.0045]
[1641915199704,0.0087981,41889.0,41883.0,0.0045]
[1641915199905,0.0087981,41889.0,41882.0,0.25440996]
[1641915200305,0.3407558,41889.0,41881.0,0.0045]
[1641915200615,0.35676962,41888.0,41881.0,0.0045]
[1641915200909,0.00079808,41887.0,41881.0,0.0045]
[1641915201105,0.00079808,41887.0,41876.0,0.00465]
[1641915201306,0.00079808,41887.0,41880.0,0.31934391]
[1641915201514,0.01479808,41887.0,41873.0,0.0036]
[1641915201716,0.01479808,41887.0,41863.0,0.17913908]
[1641915201717,0.6,41874.0,41863.0,0.17913908]
[1641915201906,0.6,41874.0,41835.0,0.23013152]
[1641915201907,0.45,41864.0,41835.0,0.13502785]
[1641915202108,0.1,41845.0,41826.0,0.2196]
[1641915202306,0.1,41845.0,41841.0,0.80949743]